[Event "*** Titled Tuesday Blitz"]
[Site "Chess.com"]
[Date "2021.03.30"]
[Round "11"]
[White "Maddie"]
[Black "grandcoach"]
[Result "1/2-1/2"]
[WhiteElo "2081"]
[BlackElo "2246"]
[TimeControl "180+1"]
[EndTime "12:09:40 PDT"]
[Termination "Game drawn by repetition"]

1. d4 {[%clk 0:03:00.9]} 1... Nf6 {[%clk 0:02:59.2]} 2. e3 {[%clk 0:02:57.3]}
2... d5 {[%clk 0:02:58.5]} 3. Bd3 {[%clk 0:02:57.6]} 3... g6 {[%clk 0:02:58.2]}
4. f4 {[%clk 0:02:57.9]} 4... Bg7 {[%clk 0:02:57.1]} 5. Nf3 {[%clk 0:02:58.8]}
5... c5 {[%clk 0:02:56.5]} 6. c3 {[%clk 0:02:58.1]} 6... O-O {[%clk 0:02:57]} 7.
O-O {[%clk 0:02:57.7]} 7... Nc6 {[%clk 0:02:55.7]} 8. Nbd2 {[%clk 0:02:58]} 8...
Bf5 {[%clk 0:02:52.2]} 9. Bxf5 {[%clk 0:02:56.8]} 9... gxf5 {[%clk 0:02:53.1]}
10. Ne5 {[%clk 0:02:57.3]} 10... e6 {[%clk 0:02:50.7]} 11. Rf3 {[%clk
0:02:56.6]} 11... Ne4 {[%clk 0:02:48.3]} 12. Rh3 {[%clk 0:02:55.6]} 12... Nxe5
{[%clk 0:02:37.2]} 13. fxe5 {[%clk 0:02:55.2]} 13... Ng5 {[%clk 0:02:13.3]} 14.
Rg3 {[%clk 0:02:47.7]} 14... Kh8 {[%clk 0:02:13]} 15. Qh5 {[%clk 0:02:42]} 15...
f6 {[%clk 0:02:09.8]} 16. exf6 {[%clk 0:02:31.8]} 16... Bxf6 {[%clk 0:02:08.3]}
17. Nf3 {[%clk 0:02:27.1]} 17... Ne4 {[%clk 0:02:05.3]} 18. Rh3 {[%clk
0:02:26.2]} 18... Qe7 {[%clk 0:02:03.7]} 19. Nh4 {[%clk 0:02:14.3]} 19... Bxh4
{[%clk 0:01:58.6]} 20. Rxh4 {[%clk 0:02:13.2]} 20... Rg8 {[%clk 0:01:56.5]} 21.
Rh3 {[%clk 0:01:58.9]} 21... Rg5 {[%clk 0:01:55.8]} 22. Qh4 {[%clk 0:01:51.3]}
22... Rag8 {[%clk 0:01:55.2]} 23. g3 {[%clk 0:01:46.6]} 23... Qc7 {[%clk
0:01:26.1]} 24. Qf4 {[%clk 0:01:40.3]} 24... Qg7 {[%clk 0:01:07.6]} 25. Kg2
{[%clk 0:01:26.3]} 25... Rg4 {[%clk 0:01:04.7]} 26. Qh6 {[%clk 0:01:14]} 26...
Qxh6 {[%clk 0:01:00.8]} 27. Rxh6 {[%clk 0:01:13.6]} 27... R8g6 {[%clk
0:01:00.7]} 28. Rxg6 {[%clk 0:01:13.5]} 28... Rxg6 {[%clk 0:01:00.6]} 29. dxc5
{[%clk 0:01:05.5]} 29... Nxc5 {[%clk 0:00:57.4]} 30. Bd2 {[%clk 0:01:02.3]}
30... Ne4 {[%clk 0:00:55.8]} 31. Rd1 {[%clk 0:01:01.9]} 31... Rg7 {[%clk
0:00:47.2]} 32. c4 {[%clk 0:01:01.1]} 32... dxc4 {[%clk 0:00:42.9]} 33. Bb4
{[%clk 0:00:52]} 33... Rc7 {[%clk 0:00:38.3]} 34. a3 {[%clk 0:00:42.3]} 34... b6
{[%clk 0:00:38.2]} 35. Kf3 {[%clk 0:00:38.5]} 35... a5 {[%clk 0:00:37.7]} 36.
Be1 {[%clk 0:00:32.4]} 36... Kg7 {[%clk 0:00:37.2]} 37. Bc3+ {[%clk 0:00:26.3]}
37... Nxc3 {[%clk 0:00:36.1]} 38. bxc3 {[%clk 0:00:27.2]} 38... Kf6 {[%clk
0:00:32.8]} 39. a4 {[%clk 0:00:26.4]} 39... Ke5 {[%clk 0:00:30.4]} 40. Rd4
{[%clk 0:00:25.6]} 40... Rc5 {[%clk 0:00:27.4]} 41. h3 {[%clk 0:00:22.5]} 41...
h5 {[%clk 0:00:26.1]} 42. g4 {[%clk 0:00:22.1]} 42... fxg4+ {[%clk 0:00:26.2]}
43. hxg4 {[%clk 0:00:22.9]} 43... h4 {[%clk 0:00:26.1]} 44. g5 {[%clk
0:00:20.8]} 44... Kf5 {[%clk 0:00:26]} 45. g6 {[%clk 0:00:20.3]} 45... Kxg6
{[%clk 0:00:25.2]} 46. Rxh4 {[%clk 0:00:20.8]} 46... Rf5+ {[%clk 0:00:24.7]} 47.
Ke4 {[%clk 0:00:20.4]} 47... Rf2 {[%clk 0:00:20.6]} 48. Kd4 {[%clk 0:00:19.7]}
48... Ra2 {[%clk 0:00:20.4]} 49. Re4 {[%clk 0:00:19.2]} 49... Rxa4 {[%clk
0:00:19.9]} 50. Rxe6+ {[%clk 0:00:18.9]} 50... Kf5 {[%clk 0:00:18.4]} 51. Rxb6
{[%clk 0:00:19.8]} 51... Ra3 {[%clk 0:00:13.8]} 52. e4+ {[%clk 0:00:17.4]} 52...
Kf4 {[%clk 0:00:13.1]} 53. e5 {[%clk 0:00:15.4]} 53... Kf5 {[%clk 0:00:12.2]}
54. e6 {[%clk 0:00:15]} 54... Kf6 {[%clk 0:00:11.9]} 55. Kxc4 {[%clk 0:00:15.3]}
55... Ke7 {[%clk 0:00:10.7]} 56. Ra6 {[%clk 0:00:14.6]} 56... Ra1 {[%clk
0:00:09.4]} 57. Kb5 {[%clk 0:00:14.9]} 57... Rc1 {[%clk 0:00:07.7]} 58. c4
{[%clk 0:00:15]} 58... Rc2 {[%clk 0:00:06.1]} 59. c5 {[%clk 0:00:15.3]} 59...
Rb2+ {[%clk 0:00:03.1]} 60. Kxa5 {[%clk 0:00:15.5]} 60... Ra2+ {[%clk
0:00:02.4]} 61. Kb5 {[%clk 0:00:15.5]} 61... Rb2+ {[%clk 0:00:01.8]} 62. Kc4
{[%clk 0:00:15.7]} 62... Rc2+ {[%clk 0:00:02.1]} 63. Kb5 {[%clk 0:00:16]} 63...
Rb2+ {[%clk 0:00:02.3]} 64. Kc4 {[%clk 0:00:15.5]} 64... Rc2+ {[%clk 0:00:02.5]}
65. Kb5 {[%clk 0:00:15.7]} 65... Rb2+ {[%clk 0:00:02.9]} 1/2-1/2

[Event "*** Titled Tuesday Blitz"]
[Site "Chess.com"]
[Date "2021.03.30"]
[Round "11"]
[White "Smirnov_Pavel"]
[Black "DeTimmerman"]
[Result "1-0"]
[WhiteElo "2898"]
[BlackElo "2753"]
[TimeControl "180+1"]
[EndTime "12:09:44 PDT"]
[Termination "Smirnov_Pavel won by resignation"]

1. d4 {[%clk 0:03:00.9]} 1... Nf6 {[%clk 0:02:56.4]} 2. c4 {[%clk 0:03:00.3]}
2... e6 {[%clk 0:02:57]} 3. Nf3 {[%clk 0:02:59]} 3... d5 {[%clk 0:02:56.7]} 4.
Nc3 {[%clk 0:02:58.7]} 4... dxc4 {[%clk 0:02:56.8]} 5. e3 {[%clk 0:02:58.2]}
5... a6 {[%clk 0:02:56.5]} 6. Bxc4 {[%clk 0:02:58.7]} 6... c5 {[%clk 0:02:56.5]}
7. O-O {[%clk 0:02:57.8]} 7... Nc6 {[%clk 0:02:56.7]} 8. a3 {[%clk 0:02:50.6]}
8... cxd4 {[%clk 0:02:55.3]} 9. exd4 {[%clk 0:02:49.9]} 9... Be7 {[%clk
0:02:54.4]} 10. d5 {[%clk 0:02:50.1]} 10... exd5 {[%clk 0:02:53.9]} 11. Nxd5
{[%clk 0:02:51]} 11... Nxd5 {[%clk 0:02:53.9]} 12. Bxd5 {[%clk 0:02:49.8]} 12...
O-O {[%clk 0:02:47.4]} 13. Bf4 {[%clk 0:02:50.7]} 13... Qb6 {[%clk 0:02:42.5]}
14. b4 {[%clk 0:02:45.6]} 14... Bg4 {[%clk 0:02:39.1]} 15. h3 {[%clk 0:02:40.9]}
15... Bh5 {[%clk 0:02:38.6]} 16. Qb3 {[%clk 0:02:38.6]} 16... a5 {[%clk
0:01:56.5]} 17. b5 {[%clk 0:02:06.6]} 17... a4 {[%clk 0:01:52.3]} 18. Qc4 {[%clk
0:01:04.5]} 18... Bxf3 {[%clk 0:01:16.4]} 19. Bxf3 {[%clk 0:01:02.8]} 19... Nd4
{[%clk 0:01:15.9]} 20. Be4 {[%clk 0:00:52.6]} 20... Rfc8 {[%clk 0:01:05.7]} 21.
Qd3 {[%clk 0:00:50.6]} 21... h6 {[%clk 0:00:53.7]} 22. Rfd1 {[%clk 0:00:32.9]}
22... Bf6 {[%clk 0:00:52.9]} 23. Be3 {[%clk 0:00:31.5]} 23... Rd8 {[%clk
0:00:49.6]} 24. Rab1 {[%clk 0:00:29.6]} 24... Qc7 {[%clk 0:00:40]} 25. b6 {[%clk
0:00:25.1]} 25... Qe7 {[%clk 0:00:40.1]} 26. Bh7+ {[%clk 0:00:18.9]} 26... Kh8
{[%clk 0:00:39]} 27. Qe4 {[%clk 0:00:18.7]} 27... Ne6 {[%clk 0:00:24]} 28. Rxd8+
{[%clk 0:00:17]} 28... Rxd8 {[%clk 0:00:19.3]} 29. Bf5 {[%clk 0:00:17.9]} 29...
Qxa3 {[%clk 0:00:16.2]} 30. Bxe6 {[%clk 0:00:17.9]} 30... fxe6 {[%clk
0:00:17.1]} 31. Qxb7 {[%clk 0:00:16.1]} 31... Qd3 {[%clk 0:00:17.2]} 32. Rf1
{[%clk 0:00:13.4]} 32... a3 {[%clk 0:00:17.5]} 33. Qa7 {[%clk 0:00:14]} 33... a2
{[%clk 0:00:16.7]} 34. Qxa2 {[%clk 0:00:12.6]} 34... Qb5 {[%clk 0:00:17.4]} 35.
Qxe6 {[%clk 0:00:11.6]} 35... Bd4 {[%clk 0:00:17.5]} 36. Bxd4 {[%clk 0:00:10.4]}
36... Rxd4 {[%clk 0:00:18.4]} 37. Re1 {[%clk 0:00:08.2]} 37... Rb4 {[%clk
0:00:18.2]} 38. Qe8+ {[%clk 0:00:07.2]} 38... Qxe8 {[%clk 0:00:18.8]} 39. Rxe8+
{[%clk 0:00:07.6]} 39... Kh7 {[%clk 0:00:19.7]} 40. Re6 {[%clk 0:00:08.3]} 40...
Rb1+ {[%clk 0:00:18.9]} 41. Kh2 {[%clk 0:00:07.8]} 41... Rb2 {[%clk 0:00:19.8]}
42. Kg3 {[%clk 0:00:08.3]} 42... Kg8 {[%clk 0:00:20.5]} 43. f4 {[%clk
0:00:08.7]} 43... Kf7 {[%clk 0:00:21.4]} 44. Rc6 {[%clk 0:00:09]} 44... Ke7
{[%clk 0:00:21.3]} 45. Rc7+ {[%clk 0:00:08.9]} 45... Kf6 {[%clk 0:00:22.2]} 46.
b7 {[%clk 0:00:09.4]} 46... h5 {[%clk 0:00:22.7]} 47. Kh4 {[%clk 0:00:08.9]}
47... g6 {[%clk 0:00:21.9]} 48. g4 {[%clk 0:00:09]} 48... hxg4 {[%clk
0:00:21.8]} 49. hxg4 {[%clk 0:00:09.2]} 49... Rb3 {[%clk 0:00:22.4]} 50. Rc6+
{[%clk 0:00:07.7]} 50... Kg7 {[%clk 0:00:22.3]} 51. Rc7+ {[%clk 0:00:06]} 51...
Kf6 {[%clk 0:00:22]} 52. Rd7 {[%clk 0:00:06.3]} 52... Ke6 {[%clk 0:00:19.1]} 53.
Rh7 {[%clk 0:00:06]} 53... Kf6 {[%clk 0:00:19.4]} 54. g5+ {[%clk 0:00:06.3]}
54... Ke6 {[%clk 0:00:18.8]} 55. Rg7 {[%clk 0:00:06.2]} 55... Kf5 {[%clk
0:00:19.2]} 56. Rf7+ {[%clk 0:00:06.1]} 56... Ke4 {[%clk 0:00:19.7]} 57. Kg4
{[%clk 0:00:05.8]} 57... Rb4 {[%clk 0:00:18.4]} 58. Rf6 {[%clk 0:00:04.2]} 58...
Rb3 {[%clk 0:00:17.9]} 59. Re6+ {[%clk 0:00:04.3]} 59... Kd5 {[%clk 0:00:17.7]}
60. Rxg6 {[%clk 0:00:05.2]} 60... Rxb7 {[%clk 0:00:17.1]} 61. f5 {[%clk
0:00:05.8]} 61... Rb4+ {[%clk 0:00:16.1]} 62. Kh5 {[%clk 0:00:05.7]} 62... Ke5
{[%clk 0:00:17]} 63. Rf6 {[%clk 0:00:05.7]} 63... Rb1 {[%clk 0:00:17.2]} 64. Rf7
{[%clk 0:00:05.5]} 64... Rf1 {[%clk 0:00:15.3]} 65. Kg6 {[%clk 0:00:05.5]} 65...
Kd6 {[%clk 0:00:15.6]} 66. f6 {[%clk 0:00:06.4]} 66... Ke6 {[%clk 0:00:16.5]}
67. Rf8 {[%clk 0:00:06.7]} 67... Rg1 {[%clk 0:00:15.9]} 68. f7 {[%clk
0:00:06.5]} 68... Ke7 {[%clk 0:00:16.1]} 69. Re8+ {[%clk 0:00:07]} 69... Kd7
{[%clk 0:00:17]} 70. f8=Q {[%clk 0:00:07.7]} 1-0

[Event "*** Titled Tuesday Blitz"]
[Site "Chess.com"]
[Date "2021.03.30"]
[Round "11"]
[White "ChelsieMonica"]
[Black "Isajevsky_Anton"]
[Result "0-1"]
[WhiteElo "2411"]
[BlackElo "2547"]
[TimeControl "180+1"]
[EndTime "12:09:44 PDT"]
[Termination "Isajevsky_Anton won by checkmate"]

1. e4 {[%clk 0:03:00.9]} 1... c5 {[%clk 0:02:59.2]} 2. Ke2 {[%clk 0:03:01.5]}
2... Nf6 {[%clk 0:02:51.9]} 3. Nc3 {[%clk 0:03:00]} 3... Nc6 {[%clk 0:02:49.7]}
4. Nf3 {[%clk 0:03:00]} 4... d5 {[%clk 0:02:48.5]} 5. exd5 {[%clk 0:02:59]} 5...
Nd4+ {[%clk 0:02:47.4]} 6. Ke1 {[%clk 0:02:58.4]} 6... Nxd5 {[%clk 0:02:44.2]}
7. Bc4 {[%clk 0:02:41.8]} 7... Nb6 {[%clk 0:02:38.1]} 8. Be2 {[%clk 0:02:12.7]}
8... e6 {[%clk 0:02:31.5]} 9. d3 {[%clk 0:02:11.7]} 9... Be7 {[%clk 0:02:28.2]}
10. h4 {[%clk 0:02:10.6]} 10... Bd7 {[%clk 0:02:22.5]} 11. h5 {[%clk 0:02:10.5]}
11... h6 {[%clk 0:02:20.1]} 12. Ne5 {[%clk 0:02:07.3]} 12... Nc6 {[%clk
0:02:16.9]} 13. Nxd7 {[%clk 0:02:05.6]} 13... Qxd7 {[%clk 0:02:17.8]} 14. Be3
{[%clk 0:02:04.9]} 14... Nd4 {[%clk 0:02:16.2]} 15. Bf3 {[%clk 0:02:05.1]} 15...
Rc8 {[%clk 0:01:32.4]} 16. a4 {[%clk 0:01:58.6]} 16... O-O {[%clk 0:01:14.7]}
17. a5 {[%clk 0:01:58.2]} 17... Nxf3+ {[%clk 0:01:14.7]} 18. Qxf3 {[%clk
0:01:57.4]} 18... Nd5 {[%clk 0:01:15.6]} 19. Nxd5 {[%clk 0:01:55.5]} 19... exd5
{[%clk 0:01:15.6]} 20. Kf1 {[%clk 0:01:51.7]} 20... Bf6 {[%clk 0:01:13.5]} 21.
Rb1 {[%clk 0:01:42]} 21... Rc6 {[%clk 0:01:02]} 22. Rh3 {[%clk 0:01:41.3]} 22...
Re8 {[%clk 0:01:01.3]} 23. Rg3 {[%clk 0:01:41.1]} 23... Kh7 {[%clk 0:00:58.1]}
24. Kg1 {[%clk 0:01:10.3]} 24... Re5 {[%clk 0:00:43.8]} 25. c3 {[%clk
0:00:51.5]} 25... d4 {[%clk 0:00:39.2]} 26. cxd4 {[%clk 0:00:50.6]} 26... cxd4
{[%clk 0:00:40.1]} 27. Bd2 {[%clk 0:00:45.7]} 27... Qd5 {[%clk 0:00:34.1]} 28.
Qxd5 {[%clk 0:00:19.3]} 28... Rxd5 {[%clk 0:00:35]} 29. Rh3 {[%clk 0:00:20.2]}
29... Rc2 {[%clk 0:00:33.6]} 30. Be1 {[%clk 0:00:20]} 30... Re5 {[%clk
0:00:21.8]} 31. b4 {[%clk 0:00:19.5]} 31... Ree2 {[%clk 0:00:21.6]} 32. Kf1
{[%clk 0:00:19.3]} 32... Bg5 {[%clk 0:00:19]} 33. Rf3 {[%clk 0:00:18.7]} 33...
Kg8 {[%clk 0:00:15.7]} 34. g3 {[%clk 0:00:18.2]} 34... Bf6 {[%clk 0:00:14.4]}
35. Rf4 {[%clk 0:00:17.8]} 35... Kf8 {[%clk 0:00:13.1]} 36. b5 {[%clk
0:00:17.8]} 36... Ke8 {[%clk 0:00:12.8]} 37. a6 {[%clk 0:00:18]} 37... b6 {[%clk
0:00:12.5]} 38. Rd1 {[%clk 0:00:17.7]} 38... Kd7 {[%clk 0:00:12.6]} 39. Kg2
{[%clk 0:00:17.7]} 39... Ke6 {[%clk 0:00:12.9]} 40. Re4+ {[%clk 0:00:17]} 40...
Rxe4 {[%clk 0:00:13]} 41. dxe4 {[%clk 0:00:17.9]} 41... Rb2 {[%clk 0:00:13]} 42.
Kf1 {[%clk 0:00:14.8]} 42... Rxb5 {[%clk 0:00:12.7]} 43. f4 {[%clk 0:00:15.7]}
43... Rb3 {[%clk 0:00:08.9]} 44. e5 {[%clk 0:00:15.8]} 44... Be7 {[%clk
0:00:09.3]} 45. Rxd4 {[%clk 0:00:15.8]} 45... Ra3 {[%clk 0:00:09.9]} 46. g4
{[%clk 0:00:13.9]} 46... g6 {[%clk 0:00:09.1]} 47. hxg6 {[%clk 0:00:13.7]} 47...
fxg6 {[%clk 0:00:10]} 48. Re4 {[%clk 0:00:13.5]} 48... Rxa6 {[%clk 0:00:10.2]}
49. Re2 {[%clk 0:00:12.6]} 49... Ra3 {[%clk 0:00:10.1]} 50. Rf2 {[%clk
0:00:12.3]} 50... a5 {[%clk 0:00:05.3]} 51. Bd2 {[%clk 0:00:09.7]} 51... Bc5
{[%clk 0:00:05.2]} 52. f5+ {[%clk 0:00:09.6]} 52... gxf5 {[%clk 0:00:05.3]} 53.
gxf5+ {[%clk 0:00:10.5]} 53... Kxe5 {[%clk 0:00:06.2]} 54. Rf4 {[%clk
0:00:10.4]} 54... Ra2 {[%clk 0:00:05.6]} 55. f6 {[%clk 0:00:07.6]} 55... Rxd2
{[%clk 0:00:05.2]} 56. Rf3 {[%clk 0:00:06.7]} 56... Rd8 {[%clk 0:00:04.8]} 57.
f7 {[%clk 0:00:07.3]} 57... Rf8 {[%clk 0:00:04.8]} 58. Ke2 {[%clk 0:00:08.2]}
58... Ke6 {[%clk 0:00:05.1]} 59. Rh3 {[%clk 0:00:09.1]} 59... Rxf7 {[%clk
0:00:05.5]} 60. Rh5 {[%clk 0:00:09.8]} 60... Rf6 {[%clk 0:00:06.4]} 61. Kd3
{[%clk 0:00:10.1]} 61... Kd6 {[%clk 0:00:06.9]} 62. Kc4 {[%clk 0:00:10.5]} 62...
Kc6 {[%clk 0:00:07.5]} 63. Re5 {[%clk 0:00:09.1]} 63... b5+ {[%clk 0:00:08]} 64.
Kd3 {[%clk 0:00:09.7]} 64... Rd6+ {[%clk 0:00:08.5]} 65. Kc2 {[%clk 0:00:09.8]}
65... a4 {[%clk 0:00:09.1]} 66. Rh5 {[%clk 0:00:10.1]} 66... Kb6 {[%clk
0:00:09.4]} 67. Kc3 {[%clk 0:00:10.3]} 67... b4+ {[%clk 0:00:09.5]} 68. Kc4
{[%clk 0:00:10.8]} 68... Rd4# {[%clk 0:00:09.9]} 0-1

[Event "*** Titled Tuesday Blitz"]
[Site "Chess.com"]
[Date "2021.03.30"]
[Round "11"]
[White "kekic76"]
[Black "Andrii_Prydun"]
[Result "1/2-1/2"]
[WhiteElo "2373"]
[BlackElo "2273"]
[TimeControl "180+1"]
[EndTime "12:09:49 PDT"]
[Termination "Game drawn by repetition"]

1. e4 {[%clk 0:03:00.9]} 1... d5 {[%clk 0:02:59.8]} 2. exd5 {[%clk 0:03:00.3]}
2... Qxd5 {[%clk 0:03:00.7]} 3. Nc3 {[%clk 0:03:00.1]} 3... Qd6 {[%clk
0:03:00.7]} 4. g3 {[%clk 0:02:57.9]} 4... Nc6 {[%clk 0:02:58.4]} 5. Bg2 {[%clk
0:02:57.9]} 5... e5 {[%clk 0:02:59.3]} 6. Nge2 {[%clk 0:02:57.7]} 6... Bg4
{[%clk 0:02:59]} 7. O-O {[%clk 0:02:57.3]} 7... O-O-O {[%clk 0:02:59]} 8. d3
{[%clk 0:02:57.4]} 8... h5 {[%clk 0:02:58.4]} 9. h3 {[%clk 0:02:55.1]} 9... Be6
{[%clk 0:02:57.8]} 10. Ne4 {[%clk 0:02:51.1]} 10... Qd7 {[%clk 0:02:57.8]} 11.
Ng5 {[%clk 0:02:51]} 11... h4 {[%clk 0:02:58.4]} 12. Nxe6 {[%clk 0:02:47.1]}
12... Qxe6 {[%clk 0:02:58.6]} 13. Nc3 {[%clk 0:02:39.9]} 13... Bc5 {[%clk
0:02:57.1]} 14. Ne4 {[%clk 0:02:36.9]} 14... Bb6 {[%clk 0:02:56.6]} 15. g4
{[%clk 0:02:35.6]} 15... f6 {[%clk 0:02:53.7]} 16. Be3 {[%clk 0:02:32.9]} 16...
g5 {[%clk 0:02:53.4]} 17. Qf3 {[%clk 0:02:27.1]} 17... Rh6 {[%clk 0:02:44]} 18.
b4 {[%clk 0:02:16.1]} 18... Nge7 {[%clk 0:02:43.2]} 19. b5 {[%clk 0:02:13.5]}
19... Nb4 {[%clk 0:02:42.2]} 20. Nxg5 {[%clk 0:01:58.9]} 20... fxg5 {[%clk
0:02:25.7]} 21. Qxb7+ {[%clk 0:01:58.2]} 21... Kd7 {[%clk 0:02:26.6]} 22. Bxg5
{[%clk 0:01:54.9]} 22... Rh7 {[%clk 0:02:15.4]} 23. Be4 {[%clk 0:01:24.5]} 23...
Rf7 {[%clk 0:02:14.9]} 24. a3 {[%clk 0:01:17.7]} 24... Nbd5 {[%clk 0:02:14]} 25.
c4 {[%clk 0:01:12.2]} 25... Nf4 {[%clk 0:02:13.2]} 26. Bxe7 {[%clk 0:01:07.4]}
26... Kxe7 {[%clk 0:02:12.6]} 27. c5 {[%clk 0:01:04.1]} 27... Nxh3+ {[%clk
0:01:51.6]} 28. Kh2 {[%clk 0:01:01]} 28... Nxf2 {[%clk 0:01:45.6]} 29. cxb6
{[%clk 0:00:56]} 29... Nxg4+ {[%clk 0:01:45.2]} 30. Kh1 {[%clk 0:00:50.8]} 30...
Qxb6 {[%clk 0:01:35.4]} 31. Rxf7+ {[%clk 0:00:43.2]} 31... Kxf7 {[%clk
0:01:36.3]} 32. Rf1+ {[%clk 0:00:40.2]} 32... Ke7 {[%clk 0:01:35.1]} 33. Qxb6
{[%clk 0:00:30.8]} 33... axb6 {[%clk 0:01:30.9]} 34. Rf5 {[%clk 0:00:30.8]}
34... Rf8 {[%clk 0:01:28.3]} 35. Rh5 {[%clk 0:00:28.6]} 35... Nf2+ {[%clk
0:01:27.6]} 36. Kg2 {[%clk 0:00:28.8]} 36... Nxe4 {[%clk 0:01:28.5]} 37. Rxe5+
{[%clk 0:00:28.7]} 37... Kd6 {[%clk 0:01:24.9]} 38. Rxe4 {[%clk 0:00:28.8]}
38... Rh8 {[%clk 0:01:20.5]} 39. Rc4 {[%clk 0:00:27.8]} 39... Rh5 {[%clk
0:01:16]} 40. a4 {[%clk 0:00:27.4]} 40... Rd5 {[%clk 0:01:15.7]} 41. d4 {[%clk
0:00:18.9]} 41... Rf5 {[%clk 0:01:05.5]} 42. Kh3 {[%clk 0:00:16.5]} 42... Rf4
{[%clk 0:01:05.3]} 43. Rc6+ {[%clk 0:00:12.8]} 43... Kd7 {[%clk 0:01:05]} 44.
Rc4 {[%clk 0:00:12.7]} 44... Re4 {[%clk 0:01:00.7]} 45. Rb4 {[%clk 0:00:12.7]}
45... Kd6 {[%clk 0:00:59.6]} 46. Rc4 {[%clk 0:00:13]} 46... Kd7 {[%clk
0:00:28.6]} 47. Rb4 {[%clk 0:00:12.3]} 47... Ke7 {[%clk 0:00:25.3]} 48. Rc4
{[%clk 0:00:11.3]} 48... Kd8 {[%clk 0:00:25.4]} 49. Rb4 {[%clk 0:00:09.1]} 49...
Rf4 {[%clk 0:00:25.2]} 50. Rc4 {[%clk 0:00:09]} 50... Kc8 {[%clk 0:00:15.4]} 51.
Rb4 {[%clk 0:00:08.6]} 51... Kd7 {[%clk 0:00:16.3]} 52. Rc4 {[%clk 0:00:08.7]}
52... Kd8 {[%clk 0:00:05]} 53. Rb4 {[%clk 0:00:08.2]} 53... Re4 {[%clk
0:00:04.7]} 54. Rc4 {[%clk 0:00:08.3]} 54... Kc8 {[%clk 0:00:05.5]} 55. Rb4
{[%clk 0:00:07.4]} 55... Kb7 {[%clk 0:00:06.4]} 56. Rc4 {[%clk 0:00:07.5]} 56...
Rf4 {[%clk 0:00:07.3]} 57. Rb4 {[%clk 0:00:07.5]} 57... Kb8 {[%clk 0:00:08]} 58.
Rc4 {[%clk 0:00:07.7]} 58... Kb7 {[%clk 0:00:08.2]} 59. Rb4 {[%clk 0:00:07.9]}
59... Kc8 {[%clk 0:00:08.9]} 60. Rc4 {[%clk 0:00:08.2]} 60... Kd7 {[%clk
0:00:09.8]} 61. Rb4 {[%clk 0:00:08.2]} 61... Re4 {[%clk 0:00:10.6]} 62. Rc4
{[%clk 0:00:08.4]} 62... Kd6 {[%clk 0:00:11.5]} 63. Rc6+ {[%clk 0:00:08.6]}
63... Kd7 {[%clk 0:00:12.4]} 64. Rc4 {[%clk 0:00:08.7]} 64... Rf4 {[%clk
0:00:11.7]} 65. Rb4 {[%clk 0:00:07.9]} 65... Ke7 {[%clk 0:00:11.1]} 66. Rc4
{[%clk 0:00:07.9]} 66... Kd8 {[%clk 0:00:07.2]} 67. Rb4 {[%clk 0:00:07.6]} 67...
Re4 {[%clk 0:00:07.4]} 68. Rc4 {[%clk 0:00:07.6]} 68... Kd7 {[%clk 0:00:07.9]}
1/2-1/2